fUST/lending_fUST_20251105
["ID","MTS","AMOUNT","RATE_DAILY","PERIOD"]
[393227420,1762351558223,-960.83267073,0.00015249,2]
[393227421,1762351558242,-300.0,0.00015271,2]
[393227422,1762351558264,-500.0,0.00015272,2]
[393227423,1762351558284,-324.19615108,0.00015272,2]
[393227424,1762351558303,-204.87035622,0.00015272,2]
[393227425,1762351558322,-179.69267238,0.00015272,2]
[393227426,1762351558342,-500.0,0.00015272,2]
[393227427,1762351558511,-500.0,0.00015272,2]
[393227428,1762351558534,-188.98721799,0.00015272,2]
[393227429,1762351558557,-627.50801535,0.00015272,2]
[393227430,1762351558582,-3151.93234546,0.00015273,2]
[393227437,1762351632087,-300.0,0.00015272,2]
[393227438,1762351632112,-117843.663993,0.00015273,2]
[393227439,1762351640084,-1672.69047428,0.00015273,2]
[393227440,1762351645225,-19720.4599593,0.00015273,2]
[393227455,1762351753077,-2477.50375296,0.0001512,2]
[393227456,1762351753097,-749.98181237,0.000152,2]
[393227457,1762351753119,-23464.12524693,0.00015273,2]
[393227501,1762351832718,-300.0,0.00015272,2]
[393227503,1762351832728,-1200.0,0.00015272,2]
[393227504,1762351832738,-6644.85372737,0.00015273,2]
[393227505,1762351832749,-480.43829154,0.00015273,2]
[393227515,1762351838538,-191.5855524,0.00015272,2]
[393227516,1762351838547,-10124.4833476,0.00015273,2]
[393227546,1762351840776,-3e-08,0.00015273,2]
[393227547,1762351840798,-4095.65707113,0.00015273,2]
[393227548,1762351840812,-341.91822702,0.00015273,2]
[393227549,1762351840823,-152.4,0.000153,2]
[393227550,1762351840833,-152.4,0.000153,2]
[393227551,1762351840843,-1072.14152063,0.00015384,2]
[393227552,1762351840875,-8528.09824187,0.00015384,2]
[393227553,1762351840885,-152.4,0.000154,2]
[393227554,1762351840895,-209.17,0.00015485,2]
[393227555,1762351840905,-209.17,0.00015485,2]
[393227557,1762351840915,-152.4,0.000155,2]
[393227559,1762351840925,-152.4,0.000155,2]
[393227561,1762351840935,-152.4,0.000156,2]
[393227563,1762351840945,-152.4,0.000156,2]
[393227565,1762351840958,-500.0,0.000157,2]
[393227567,1762351840968,-394.2999978,0.000157,2]
[393227569,1762351840978,-394.2999978,0.000157,2]
[393227571,1762351840987,-152.4,0.000157,2]
[393227573,1762351840999,-471.58148465,0.00015772,2]
[393227575,1762351841009,-213.59380327,0.00015772,2]
[393227577,1762351841019,-500.0,0.00015772,2]
[393227579,1762351841032,-500.0,0.00015772,2]
[393227581,1762351841041,-292.46025161,0.00015772,2]
[393227782,1762351843859,-163.92748572,0.00015772,2]
[393227783,1762351843870,-442.6406524,0.00015772,2]
[393227784,1762351843880,-394.2999978,0.000158,2]
[393227785,1762351843890,-394.2999978,0.000158,2]
[393227786,1762351843899,-394.2999978,0.000158,2]
[393227787,1762351843909,-394.2999978,0.000158,2]
[393227788,1762351843918,-394.2999978,0.000158,2]
[393227789,1762351843927,-394.2999978,0.000158,2]
[393227790,1762351843936,-394.2999978,0.000158,2]
[393227791,1762351843944,-394.2999978,0.000158,2]
[393227792,1762351843958,-394.2999978,0.000158,2]
[393227793,1762351843967,-394.2999978,0.000159,2]
[393227794,1762351843976,-500.0,0.000159,2]
[393227795,1762351843986,-347.43188388,0.000159,2]
[393227798,1762351844169,-46.86811392,0.000159,2]
[393227799,1762351844179,-502.96268208,0.000159,2]
[393227800,1762351844188,-500.0,0.000159,2]
[393227801,1762351844197,-483.11396341,0.000159,2]
[393227802,1762351844206,-394.2999978,0.000159,2]
[393227803,1762351844215,-394.2999978,0.000159,2]
[393227804,1762351844224,-394.2999978,0.000159,2]
[393227805,1762351844234,-394.2999978,0.000159,2]
[393227806,1762351844243,-394.2999978,0.000159,2]
[393227807,1762351844252,-503.91336639,0.00015912,2]
[393227808,1762351844261,-501.32630293,0.00015967,2]
[393227809,1762351844271,-500.0,0.00015967,2]
[393227810,1762351844280,-514.40730907,0.00015971,2]
[393227811,1762351844289,-986.0,0.00015973,2]
[393227812,1762351844298,-2165.0,0.00015973,2]
[393227813,1762351844307,-4409.0,0.00015973,2]
[393227814,1762351844315,-500.0,0.00015989,2]
[393227815,1762351844324,-500.0,0.00015989,2]
[393227816,1762351844334,-394.2999978,0.00016,2]
[393227817,1762351844343,-153.59902826,0.0001605,2]
[393227818,1762351844352,-500.0,0.0001605,2]
[393227819,1762351844361,-500.0,0.0001605,2]
[393227820,1762351844371,-500.0,0.0001605,2]
[393227821,1762351844380,-500.0,0.0001605,2]
[393227822,1762351844389,-151.0,0.0001605,2]
[393227823,1762351844398,-542.04631888,0.00016105,2]
[393227824,1762351844407,-588.70110518,0.00016105,2]
[393227825,1762351844416,-500.0,0.00016105,2]
[393227826,1762351844425,-500.0,0.00016105,2]
[393227827,1762351844434,-151.0,0.00016105,2]
[393227828,1762351844443,-250.0,0.00016113,2]
[393227829,1762351844452,-250.0,0.00016113,2]
[393227830,1762351844463,-215.82,0.00016113,2]
[393227831,1762351844472,-151.24,0.00016113,2]
[393227832,1762351844481,-150.0,0.00016113,2]
[393227833,1762351844490,-187.147,0.00016113,2]
[393227834,1762351844499,-154.922,0.00016113,2]
[393227835,1762351844508,-151.0,0.00016113,2]
[393227836,1762351844517,-165.02,0.00016123,2]
[393227837,1762351844526,-165.02,0.00016123,2]
[393227838,1762351844535,-165.02,0.00016123,2]
[393227839,1762351844544,-165.02,0.00016123,2]
[393227840,1762351844553,-165.02,0.00016123,2]
[393227841,1762351844562,-150.99,0.00016123,2]
[393227842,1762351844571,-500.0,0.0001616,2]
[393227843,1762351844580,-500.0,0.0001616,2]
[393227844,1762351844589,-151.44563484,0.0001616,2]
[393227845,1762351844598,-151.0,0.00016168,2]
[393227846,1762351844607,-500.0,0.00016168,2]
[393227847,1762351844616,-381.49233747,0.00016214,2]
[393227848,1762351844625,-151.0,0.00016223,2]
[393227849,1762351844634,-500.0,0.00016223,2]
[393227850,1762351844644,-500.0,0.00016263,2]
[393227851,1762351844654,-500.0,0.00016265,2]
[393227852,1762351844663,-278.43090321,0.00016272,2]
[393227853,1762351844672,-176.974,0.00016272,2]
[393227854,1762351844681,-151.0,0.00016277,2]
[393227855,1762351844690,-151.0,0.00016277,2]
[393227856,1762351844699,-500.79996884,0.00016278,2]
[393227857,1762351844708,-151.0,0.00016332,2]
[393227858,1762351844718,-160.0,0.00016375,2]
[393227859,1762351844727,-206.577231,0.00016387,2]
[393227860,1762351844737,-500.0,0.00016438,2]
[393227861,1762351844746,-500.0,0.00016438,2]
[393227862,1762351844755,-500.0,0.00016438,2]
[393227863,1762351844765,-500.0,0.00016438,2]
[393227864,1762351844774,-500.0,0.00016438,2]
[393227865,1762351844783,-500.0,0.00016438,2]
[393227866,1762351844792,-500.0,0.00016438,2]
[393227867,1762351844801,-179.5,0.0001644,2]
[393227868,1762351844810,-500.0,0.00016537,2]
[393227869,1762351844820,-500.0,0.00016672,2]
[393227870,1762351844829,-500.0,0.00016672,2]
[393227871,1762351844839,-332.0,0.00016733,2]
[393227872,1762351844848,-190.49640165,0.00016735,2]
[393227873,1762351844858,-134659.57406135,0.0001677,2]
[393227874,1762351844868,-500.0,0.00016811,2]
[393227875,1762351844877,-192.58307681,0.00016917,2]
[393227876,1762351844887,-260.0,0.00016923,2]
[393227877,1762351844896,-500.0,0.00016972,2]
[393227878,1762351844905,-163.61067909,0.00016972,2]
[393227879,1762351844914,-1197.67949324,0.00017,2]
[393227880,1762351844923,-500.0,0.00017085,2]
[393227881,1762351845044,-500.0,0.00017172,2]
[393227882,1762351845060,-500.0,0.00017172,2]
[393227883,1762351845075,-302.12250539,0.00017225,2]
[393227884,1762351845085,-248.11,0.00017226,2]
[393227885,1762351845094,-226.07095183,0.00017272,2]
[393227886,1762351845104,-316.48882307,0.00017359,2]
[393227887,1762351845118,-183.51117693,0.00017359,2]
[393227888,1762351845127,-360.0,0.00017471,2]
[393227889,1762351845137,-300.0,0.00017515,2]
[393227890,1762351845147,-300.0,0.00017515,2]
[393227891,1762351845157,-300.0,0.00017515,2]
[393227892,1762351845166,-300.0,0.00017515,2]
[393227893,1762351845176,-300.0,0.00017515,2]
[393227894,1762351845186,-300.0,0.00017515,2]
[393227895,1762351845196,-300.0,0.00017515,2]
[393227896,1762351845206,-300.0,0.00017515,2]
[393227897,1762351845216,-300.0,0.00017515,2]
[393227898,1762351845227,-300.0,0.00017515,2]
[393227899,1762351845236,-300.0,0.00017515,2]
[393227900,1762351845246,-300.0,0.00017515,2]
[393227901,1762351845256,-300.0,0.00017515,2]
[393227902,1762351845266,-300.0,0.00017515,2]
[393227903,1762351845275,-300.0,0.00017515,2]
[393227904,1762351845285,-600.0,0.00017515,2]
[393227905,1762351845295,-500.0,0.00017633,2]
[393227906,1762351845305,-1002.23479104,0.000178,2]
[393227907,1762351845315,-505.11998163,0.000178,2]
[393227908,1762351845325,-508.96198305,0.000178,2]
[393227909,1762351845334,-286.73703719,0.000178,2]
[393227910,1762351845344,-75.4697875,0.00017879,2]
[393227929,1762351846811,-444.02230036,0.00017879,2]
[393227930,1762351846820,-501.37146483,0.00017879,2]
[393227931,1762351846830,-505.75955991,0.00017879,2]
[393227932,1762351846840,-500.0,0.00017879,2]
[393227933,1762351846850,-240.0088926,0.00017879,2]
[393227934,1762351846914,-259.9911074,0.00017879,2]
[393227935,1762351846924,-471.2770702,0.00017879,2]
[393227936,1762351846933,-471.2770702,0.00017879,2]
[393227937,1762351846942,-503.90725334,0.00017879,2]
[393227938,1762351846955,-500.0,0.00017907,2]
[393227939,1762351846964,-592.0428383,0.00017956,2]
[393227940,1762351846973,-592.0428383,0.00017956,2]
[393227941,1762351846983,-592.0428383,0.00017956,2]
[393227942,1762351846993,-592.0428383,0.00017956,2]
[393227943,1762351847002,-592.0428383,0.00017956,2]
[393227944,1762351847012,-592.0428383,0.00017956,2]
[393227945,1762351847022,-464.161767,0.00017956,2]
[393227946,1762351847033,-592.0428383,0.00017956,2]
[393227947,1762351847043,-592.0428383,0.00017956,2]
[393227948,1762351847052,-299.7414817,0.00017956,2]
[393227949,1762351847061,-592.0428383,0.00017956,2]
[393227950,1762351847070,-299.7414817,0.00017956,2]
[393227951,1762351847080,-200.0,0.00018,2]
[393227952,1762351847089,-321.30941545,0.00018,2]
[393227954,1762351847099,-1334.25086839,0.00018,2]
[393228009,1762352213862,7009.9,0.0003287,120]
[393228056,1762352802184,364.4071224,0.00014173,2]
[393228058,1762352841091,-160.0,0.00015075,2]
[393228059,1762352841112,-183.23242231,0.00015075,2]
[393228060,1762352841131,-314.29070126,0.00015075,2]
[393228087,1762352948097,-257.19850369,0.00015075,2]
[393228088,1762352948117,-211.48575377,0.00015172,2]
[393228089,1762352948137,-240.0,0.00015172,2]
[393228090,1762352948155,-427.89085191,0.00015173,2]
[393228091,1762352948174,-500.0,0.00015173,2]
[393228092,1762352948193,-500.0,0.00015173,2]
[393228093,1762352948213,-500.0,0.00015173,2]
[393228094,1762352948236,-11657.34967003,0.00015173,2]
[393228096,1762352951096,-133184.88918574,0.00015173,2]
[393228136,1762353031792,-656.23408585,0.00015075,2]
[393228137,1762353031801,-242.03425189,0.00015173,2]
[393228157,1762353037684,-230.96486795,0.00015173,2]
[393228158,1762353037693,-6147.19276697,0.00015173,2]
[393228162,1762353039916,-51334.99999999,0.00015173,2]
[393228490,1762353046288,-1805.64300152,0.00015173,2]
[393228497,1762353142314,296.44,0.00032876,120]
[393228498,1762353177380,439.276804,0.00014248,2]
[393228517,1762353371863,-479.9248394,0.00014722,2]
[393228518,1762353373413,-379.0986642,0.00014722,2]
[393228549,1762353573031,788.563123,0.00013699,2]
[393228553,1762353581160,-164.28104388,0.0001473,2]
[393228555,1762353585101,-179.56777387,0.00014601,2]
[393228556,1762353585123,-46.96908151,0.0001473,2]
[393228716,1762353809377,179.56777387,0.0001431,2]
[393228727,1762353832570,179.56777387,0.0001431,2]
[393228743,1762353857845,179.56777387,0.0001431,2]
[393228760,1762353881319,179.56777387,0.0001431,2]
[393228761,1762353903747,179.56777387,0.0001431,2]
[393228762,1762353928413,179.56777387,0.0001431,2]
[393228763,1762353951575,179.56777387,0.0001431,2]
[393228764,1762353968774,179.56777387,0.0001431,2]
[393228765,1762353993983,179.56777387,0.00014384,2]
[393228770,1762354017347,179.56777387,0.00014384,2]
[393228773,1762354037127,-179.56777387,0.00014529,2]
[393228774,1762354037147,-82.97370167,0.00014676,2]
[393228775,1762354039089,-96.5940722,0.00014676,2]
[393228776,1762354039109,-122216.05926164,0.0001473,2]
[393228797,1762354085655,355.23,0.000144,2]
[393228798,1762354146107,-295.67419045,0.00014702,2]
[393228799,1762354146127,-145.32580955,0.0001473,2]
[393228800,1762354174102,-175.97641839,0.00014628,2]
[393228801,1762354174123,-3958.27141839,0.0001473,2]
[393228845,1762354231949,-175.97641839,0.00014628,2]
[393228847,1762354231959,-384.18991515,0.0001473,2]
[393228850,1762354231978,-8012.26235559,0.0001473,2]
[393228852,1762354231990,-9644.29498134,0.0001473,2]
[393228855,1762354232009,-351.49724853,0.0001473,2]
[393229148,1762354240191,-29.17127506,0.0001473,2]
[393229153,1762354243288,-175.97641839,0.00014628,2]
[393229154,1762354243298,-17066.73671624,0.0001473,2]
[393229155,1762354243406,-429.11,0.0001473,2]
[393229165,1762354246334,-13590.29481487,0.0001473,2]
[393229166,1762354269142,343.22,0.00012329,2]
[393229168,1762354279677,286.01,0.00012329,2]
[393229169,1762354290159,238.35,0.00012329,2]
[393229170,1762354300610,198.62,0.00012329,2]
[393229171,1762354311164,165.52,0.00012329,2]
[393229183,1762354321606,827.61,0.00012329,2]
[393229211,1762354390911,1666.53,0.00037487,60]
[393229212,1762354391169,1666.53,0.00037487,60]
[393229214,1762354391457,1666.53,0.00037487,60]
[393229215,1762354391716,1666.53,0.00037487,60]
[393229216,1762354391965,1666.53,0.00037487,60]
[393229217,1762354392213,1666.53,0.00037487,60]
[393229218,1762354392467,1666.53,0.00037487,60]
[393229219,1762354392780,1666.53,0.00037487,60]
[393229220,1762354392974,1666.53,0.00037487,60]
[393229221,1762354393209,1666.53,0.00037487,60]
[393229222,1762354393470,1666.53,0.00037487,60]
[393229223,1762354393714,1666.53,0.00037487,60]
[393229224,1762354393970,1666.53,0.00037487,60]
[393229225,1762354394262,1666.53,0.00037487,60]
[393229226,1762354394567,1666.53,0.00037487,60]
[393229227,1762354394817,1666.53,0.00037487,60]
[393229228,1762354395080,1666.53,0.00037487,60]
[393229229,1762354395327,1666.53,0.00037487,60]
[393229230,1762354395581,1666.53,0.00037487,60]
[393229231,1762354395828,1666.53,0.00037487,60]
[393229232,1762354396090,1666.53,0.00037487,60]
[393229233,1762354396370,1666.53,0.00037487,60]
[393229234,1762354396612,1666.53,0.00037487,60]
[393229235,1762354396864,1666.55820059,0.00037487,60]
[393229351,1762354859425,-7459.28731634,0.0001473,2]
[393229352,1762354859599,-10000.01,0.0001473,2]
[393229353,1762354859730,-10000.01,0.0001473,2]
[393229354,1762354859839,-10000.01,0.0001473,2]
[393229355,1762354859972,-10000.01,0.0001473,2]
[393229356,1762354860110,-10000.01,0.0001473,2]
[393229357,1762354860230,-10000.01,0.0001473,2]
[393229358,1762354860413,-10000.01,0.0001473,2]
[393229359,1762354860578,-10000.01,0.0001473,2]
[393229360,1762354860747,-10000.01,0.0001473,2]
[393229361,1762354865297,-10000.01,0.0001473,2]
[393229362,1762354865444,-10000.01,0.0001473,2]
[393229363,1762354865590,-10000.01,0.0001473,2]
[393229364,1762354865757,-10000.01,0.0001473,2]
[393229365,1762354865932,-10000.01,0.0001473,2]
[393229366,1762354866084,-10000.01,0.0001473,2]
[393229367,1762354866208,-10000.01,0.0001473,2]
[393229368,1762354866384,-10000.01,0.0001473,2]
[393229369,1762354866547,-10000.01,0.0001473,2]
[393229370,1762354866692,-10000.01,0.0001473,2]
[393229371,1762354871403,-10000.01,0.0001473,2]
[393229372,1762354871553,-10000.01,0.0001473,2]
[393229373,1762354871690,-10000.01,0.0001473,2]
[393229374,1762354871821,-10000.01,0.0001473,2]
[393229375,1762354871968,-10000.01,0.0001473,2]
[393229376,1762354872102,-10000.01,0.0001473,2]
[393229377,1762354872246,-10000.01,0.0001473,2]
[393229378,1762354872369,-10000.01,0.0001473,2]
[393229379,1762354872489,-10000.01,0.0001473,2]
[393229380,1762354872640,-2284.91664509,0.0001473,2]
[393229381,1762354872668,-5430.17670982,0.0001473,2]
[393229382,1762354877481,-181.03819852,0.00014801,2]
[393229383,1762354877512,-656.23408585,0.000149,2]
[393229384,1762354877544,-848.0,0.00014972,2]
[393229385,1762354877577,-300.0,0.00014972,2]
[393229387,1762354877673,-6029.46543126,0.00014973,2]
[393229388,1762354877688,-10000.01,0.00014973,2]
[393229389,1762354877732,-10000.01,0.00014973,2]
[393229390,1762354877865,-10000.01,0.00014973,2]
[393229391,1762354878248,-10000.01,0.00014973,2]
[393229392,1762354878387,-10000.01,0.00014973,2]
[393229393,1762354878415,-10000.01,0.00014973,2]
[393229394,1762354878544,-10000.01,0.00014973,2]
[393229395,1762354878667,-10000.01,0.00014973,2]
[393229396,1762354878806,-10000.01,0.00014973,2]
[393229399,1762354883530,-10000.01,0.00014973,2]
[393229400,1762354883680,-10000.01,0.00014973,2]
[393229401,1762354883811,-10000.01,0.00014973,2]
[393229402,1762354883926,-10000.01,0.00014973,2]
[393229404,1762354884059,-10000.01,0.00014973,2]
[393229405,1762354884197,-10000.01,0.00014973,2]
[393229406,1762354884355,-10000.01,0.00014973,2]
[393229407,1762354884508,-10000.01,0.00014973,2]
[393229408,1762354884736,-10000.01,0.00014973,2]
[393229409,1762354884788,-10000.01,0.00014973,2]
[393229471,1762355043987,165.75620157,0.00014135,2]
[393229472,1762355050555,-153.33194213,0.00014426,2]
[393229473,1762355202097,500.0,0.00037483,60]
[393229474,1762355202277,500.0,0.00037483,60]
[393229475,1762355202499,474.47772815,0.00037483,60]
[393229476,1762355231281,-12.42425944,0.00014426,2]
[393229477,1762355231306,-181.01976625,0.00014663,2]
[393229478,1762355231330,-690.25079083,0.000149,2]
[393229479,1762355231352,-228.35107338,0.00014972,2]
[393229480,1762355231373,-300.0,0.00014972,2]
[393229481,1762355231397,-22584.82227041,0.00014973,2]
[393229519,1762355347081,-331.67828111,0.00014873,2]
[393229520,1762355360088,-272.29116091,0.00014873,2]
[393229521,1762355360107,-502.76176216,0.00014973,2]
[393229522,1762355360126,-500.0,0.00014973,2]
[393229523,1762355360145,-500.0,0.00014973,2]
[393229524,1762355360170,-500.0,0.00014973,2]
[393229525,1762355360189,-211.40099109,0.00014973,2]
[393229526,1762355360213,-2453.77355629,0.00014973,2]
[393229527,1762355360245,-138756.96127258,0.00014973,2]
[393229528,1762355362094,-2147.33897335,0.00014973,2]
[393229607,1762355436071,15182.495455,0.00014,2]
[393229608,1762355437591,-266.67515437,0.00014675,2]
[393229617,1762355438035,-233.32484563,0.00014675,2]
[393229618,1762355438045,-63.10714599,0.00014823,2]
[393229619,1762355438056,-436.89285401,0.00014823,2]
[393229620,1762355438066,-500.0,0.00014973,2]
[393229621,1762355438075,-19299.42280336,0.00014973,2]
[393229658,1762355440300,-804.07397399,0.00014973,2]
[393229663,1762355440342,-409.08259076,0.00014973,2]
[393229812,1762355448117,180.26637303,0.00014266,2]
[393229813,1762355449576,345.71,0.00012329,2]
[393229814,1762355460032,288.09,0.00012329,2]
[393229815,1762355460855,-161.74352294,0.00014675,2]
[393229816,1762355464686,-196.28083808,0.00014675,2]
[393229817,1762355466493,-387.74800724,0.00014675,2]
[393229818,1762355469646,-180.91238645,0.00014674,2]
[393229819,1762355470879,240.07,0.00012329,2]
[393229821,1762355481560,200.06,0.00012329,2]
[393229822,1762355482330,-119.08761355,0.00014674,2]
[393229823,1762355482353,-364.7884786,0.00014675,2]
[393229824,1762355485482,-171.48244664,0.00014675,2]
[393229825,1762355490015,-186.51937999,0.00014675,2]
[393229826,1762355492019,166.72,0.00012329,2]
[393229827,1762355492810,-300.80984131,0.00014675,2]
[393229828,1762355495875,-300.0,0.00014675,2]
[393229829,1762355497582,-328.13905222,0.00014675,2]
[393229830,1762355502519,833.61,0.00012329,2]
[393229831,1762355503119,-236.60456641,0.00014675,2]
[393229832,1762355505076,-308.83400442,0.00014675,2]
[393229833,1762355508967,-407.43103388,0.00014675,2]
[393229834,1762355510931,-157.37654015,0.00014675,2]
[393229835,1762355513411,-450.0,0.00014675,2]
[393229836,1762355530510,-391.67557583,0.00014675,2]
[393229837,1762355534049,-212.724126,0.00014675,2]
[393229838,1762355535671,-260.07470142,0.00014675,2]
[393229839,1762355537734,-169.65502158,0.00014675,2]
[393229840,1762355543374,-525.40782118,0.00014675,2]
[393229841,1762355547054,-238.74911559,0.00014675,2]
[393229842,1762355550211,-230.6892767,0.00014675,2]
[393229843,1762355552477,-229.12950711,0.00014675,2]
[393229844,1762355557219,-225.64279042,0.00014675,2]
[393229845,1762355561169,-188.87729272,0.00014675,2]
[393229846,1762355565308,-345.38455942,0.00014675,2]
[393229847,1762355567780,-155.41481188,0.00014675,2]
[393229848,1762355570109,-245.51880397,0.00014675,2]
[393229849,1762355572456,-374.8536954,0.00014675,2]
[393229850,1762355574080,-163.40070904,0.00014675,2]
[393229859,1762355577970,-294.18324461,0.00014675,2]
[393229861,1762355580648,-297.3587906,0.00014675,2]
[393229881,1762355661148,2135.07699078,0.00014383,2]
[393229882,1762355661739,-300.0,0.00014528,2]
[393229885,1762355664254,-250.63716516,0.00014528,2]
[393229886,1762355680587,-188.74523064,0.00014528,2]
[393229887,1762355683938,1395.69459498,0.00014383,2]
[393229888,1762355684400,-283.00114507,0.00014528,2]
[393229889,1762355687036,-275.99194679,0.00014528,2]
[393229890,1762355689059,-300.0,0.00014528,2]
[393229892,1762355693358,-238.55260322,0.00014528,2]
[393229895,1762355706086,298.1488999,0.00014383,2]
[393229897,1762355728801,298.1488999,0.00014383,2]
[393229899,1762355753754,298.1488999,0.00014383,2]
[393229900,1762355777464,298.1488999,0.00014383,2]
[393229901,1762355801164,298.1488999,0.00014383,2]
[393229903,1762355823919,298.1488999,0.00014383,2]
[393229904,1762355840248,298.1488999,0.00014383,2]
[393229905,1762355875550,-163.65664654,0.00014407,2]
[393229906,1762355913604,6531.9980033,0.00013948,2]
[393229917,1762356103598,-180.60251544,0.00014407,2]
[393229918,1762356103623,-129.31232853,0.0001448,2]
[393229919,1762356110285,-51.29018691,0.0001448,2]
[393229920,1762356110309,-130.05344354,0.00014553,2]
[393229921,1762356132954,749.134966,0.00013699,2]
[393229923,1762356280595,-203.05,0.00014652,2]
[393229924,1762356286075,-388.20186426,0.00014505,2]
[393229925,1762356295084,-127.71779914,0.00014505,2]
[393229926,1762356295109,-172.28220086,0.00014652,2]
[393229927,1762356297742,-160.14743677,0.00014652,2]
[393229928,1762356311103,-183.49002577,0.00014505,2]
[393229929,1762356311128,-116.50997423,0.00014652,2]
[393229931,1762356336097,-66.98005154,0.00014652,2]
[393229932,1762356336117,-148.10414406,0.000148,2]
[393229933,1762356355539,-294.26931423,0.00014652,2]
[393229934,1762356361346,-215.42743677,0.00014505,2]
[393229935,1762356365680,-235.41256323,0.00014505,2]
[393229936,1762356400588,-272.12689936,0.000145,2]
[393229939,1762356431469,-12.21737059,0.000145,2]
[393229940,1762356431493,-180.65511358,0.00014503,2]
[393229941,1762356431516,-18.95248337,0.00014505,2]
[393229943,1762356452075,-101.07303597,0.00014505,2]
[393229944,1762356452096,-276.59620511,0.00014652,2]
[393229945,1762356452116,-356.68295885,0.000148,2]
[393229946,1762356452137,-159.84575137,0.00014872,2]
[393229947,1762356452158,-545.0,0.00014872,2]
[393229948,1762356452179,-300.0,0.00014872,2]
[393229949,1762356452201,-1252.25967594,0.00014873,2]
[393229950,1762356475568,-267.75040235,0.00014577,2]
[393229951,1762356479505,-253.44630284,0.00014577,2]
[393229952,1762356482578,-317.31265916,0.00014577,2]
[393229953,1762356485087,-156.23987852,0.00014577,2]
[393229954,1762356490554,-236.50359093,0.00014577,2]
[393229955,1762356493403,-207.25518694,0.00014577,2]
[393229956,1762356496863,-382.04304448,0.00014577,2]
[393229957,1762356501730,-169.56028027,0.00014577,2]
[393229963,1762356521606,-248.57594024,0.00014577,2]
[393229964,1762356525100,-410.85138801,0.00014577,2]
[393229965,1762356528657,-299.36812368,0.00014577,2]
[393229966,1762356549083,-81.6979756,0.00014577,2]
[393229967,1762356549104,-300.0,0.00014639,2]
[393229968,1762356549126,-2720.1784244,0.0001464,2]
[393229971,1762356561088,-309.45124598,0.00014494,2]
[393229972,1762356565473,-226.63428719,0.00014494,2]
[393229974,1762356567496,-271.03465328,0.00014494,2]
[393229975,1762356569123,-175.48770835,0.00014494,2]
[393229976,1762356572616,-281.56134231,0.00014494,2]
[393230181,1762356641083,-3e-08,0.00014494,2]
[393230183,1762356641116,-277.31296788,0.00014494,2]
[393230184,1762356641141,-167.76404163,0.000145,2]
[393230191,1762356643519,-74.77252955,0.000145,2]
[393230192,1762356643557,-23.89824396,0.000145,2]
[393230208,1762356646661,-15.12652717,0.000145,2]
[393230209,1762356646671,-878.07415978,0.0001464,2]
[393230210,1762356646836,-19764.54993735,0.0001464,2]
[393230211,1762356646848,-276.45375687,0.0001464,2]
[393230212,1762356646858,-9004.39524669,0.00014724,2]
[393230213,1762356646867,-528.47326175,0.000148,2]
[393230214,1762356646877,-82816.02786992,0.00014873,2]
[393230215,1762356646915,-52.82324435,0.00014873,2]
[393230216,1762356646926,-657.76835311,0.00014873,2]
[393230217,1762356646954,-20657.5415996,0.00014873,2]
[393230219,1762356646966,-3499.2105,0.00014873,2]
[393230220,1762356651508,329.97,0.00012329,2]
[393230222,1762356662020,274.97,0.00012329,2]
[393230223,1762356673675,229.14,0.00012329,2]
[393230225,1762356684719,190.95,0.00012329,2]
[393230229,1762356695655,159.13,0.00012329,2]
[393230230,1762356696298,-262.43490969,0.00014577,2]
[393230231,1762356706457,474.95,0.00012329,2]
[393230232,1762356707648,-294.79700951,0.000145,2]